[Event "*** Titled Tuesday Blitz"]
[Site "Chess.com"]
[Date "2020.10.20"]
[Round "4"]
[White "korkmaz16"]
[Black "kleinebeer98"]
[Result "0-1"]
[WhiteElo "2367"]
[BlackElo "2627"]
[TimeControl "180+1"]
[EndTime "10:39:43 PDT"]
[Termination "kleinebeer98 won on time"]

1. e4 {[%clk 0:03:00.9]} 1... e5 {[%clk 0:02:58.8]} 2. Nf3 {[%clk 0:02:58.7]}
2... Nc6 {[%clk 0:02:59.3]} 3. Bc4 {[%clk 0:02:58.1]} 3... Nf6 {[%clk
0:02:57.8]} 4. Ng5 {[%clk 0:02:56.9]} 4... d5 {[%clk 0:02:57.4]} 5. exd5 {[%clk
0:02:56.4]} 5... Na5 {[%clk 0:02:57.7]} 6. Bb5+ {[%clk 0:02:56]} 6... Bd7 {[%clk
0:02:55.9]} 7. Qe2 {[%clk 0:02:54.4]} 7... Be7 {[%clk 0:02:51.5]} 8. Nc3 {[%clk
0:02:44.3]} 8... O-O {[%clk 0:02:47.3]} 9. Qd3 {[%clk 0:01:25.8]} 9... c6 {[%clk
0:02:43.3]} 10. dxc6 {[%clk 0:01:21.1]} 10... Nxc6 {[%clk 0:02:44.2]} 11. Bxc6
{[%clk 0:01:16.9]} 11... Bxc6 {[%clk 0:02:45.1]} 12. Qxd8 {[%clk 0:01:16.4]}
12... Raxd8 {[%clk 0:02:46]} 13. O-O {[%clk 0:01:16]} 13... h6 {[%clk
0:02:45.1]} 14. Nf3 {[%clk 0:01:10.7]} 14... Bxf3 {[%clk 0:02:45.1]} 15. gxf3
{[%clk 0:01:10.8]} 15... Nd5 {[%clk 0:02:42.9]} 16. Nxd5 {[%clk 0:01:06.6]}
16... Rxd5 {[%clk 0:02:43.8]} 17. d3 {[%clk 0:01:07.1]} 17... Rc8 {[%clk
0:02:36]} 18. c3 {[%clk 0:01:06.9]} 18... Rxd3 {[%clk 0:02:35.3]} 19. Be3 {[%clk
0:01:07.2]} 19... a6 {[%clk 0:02:24.8]} 20. Rfd1 {[%clk 0:01:06.6]} 20... Rcd8
{[%clk 0:02:24.7]} 21. Rxd3 {[%clk 0:01:06.4]} 21... Rxd3 {[%clk 0:02:25.6]} 22.
Kf1 {[%clk 0:01:06.5]} 22... f5 {[%clk 0:02:25.3]} 23. f4 {[%clk 0:01:04.5]}
23... e4 {[%clk 0:02:14.6]} 24. Ke2 {[%clk 0:01:04.3]} 24... Kf7 {[%clk
0:02:14.6]} 25. f3 {[%clk 0:01:04.2]} 25... Ke6 {[%clk 0:02:05.3]} 26. fxe4
{[%clk 0:01:04.5]} 26... fxe4 {[%clk 0:02:06.2]} 27. Rg1 {[%clk 0:01:03]} 27...
Bf6 {[%clk 0:02:05.2]} 28. h4 {[%clk 0:00:54.2]} 28... h5 {[%clk 0:02:04.3]} 29.
Rg6 {[%clk 0:00:53.3]} 29... Kf5 {[%clk 0:02:03.6]} 30. Rg1 {[%clk 0:00:53]}
30... Rd7 {[%clk 0:02:01.5]} 31. Rg2 {[%clk 0:00:34.5]} 31... Bxh4 {[%clk
0:01:58.1]} 32. Rh2 {[%clk 0:00:34.6]} 32... Kg4 {[%clk 0:01:58.5]} 33. Rg2+
{[%clk 0:00:33.3]} 33... Bg3 {[%clk 0:01:58.6]} 34. Bf2 {[%clk 0:00:29.7]} 34...
h4 {[%clk 0:01:58.7]} 35. Bxg3 {[%clk 0:00:30.2]} 35... hxg3 {[%clk 0:01:59.6]}
36. Ke3 {[%clk 0:00:30.6]} 36... Rf7 {[%clk 0:01:55.6]} 0-1

[Event "*** Titled Tuesday Blitz"]
[Site "Chess.com"]
[Date "2020.10.20"]
[Round "4"]
[White "Zkid"]
[Black "731291"]
[Result "1-0"]
[WhiteElo "2824"]
[BlackElo "2631"]
[TimeControl "180+1"]
[EndTime "10:39:46 PDT"]
[Termination "Zkid won by resignation"]

1. e4 {[%clk 0:03:00.9]} 1... c5 {[%clk 0:02:59.9]} 2. Nf3 {[%clk 0:03:00.1]}
2... e6 {[%clk 0:02:59.8]} 3. d4 {[%clk 0:02:59.8]} 3... cxd4 {[%clk 0:03:00.7]}
4. Nxd4 {[%clk 0:03:00.7]} 4... Nc6 {[%clk 0:03:00.5]} 5. Nc3 {[%clk 0:03:00.6]}
5... Qc7 {[%clk 0:03:00.8]} 6. Be3 {[%clk 0:03:01]} 6... a6 {[%clk 0:03:00.6]}
7. Qf3 {[%clk 0:03:01.2]} 7... d6 {[%clk 0:03:00.1]} 8. O-O-O {[%clk 0:02:59.6]}
8... Bd7 {[%clk 0:02:59.9]} 9. Qg3 {[%clk 0:02:54.4]} 9... Nf6 {[%clk
0:02:59.4]} 10. Be2 {[%clk 0:02:50.1]} 10... Rc8 {[%clk 0:02:55.7]} 11. Kb1
{[%clk 0:02:44.1]} 11... b5 {[%clk 0:02:51.4]} 12. Nxc6 {[%clk 0:02:39.9]} 12...
Bxc6 {[%clk 0:02:49.4]} 13. Rd4 {[%clk 0:02:21.7]} 13... Nxe4 {[%clk 0:02:26.7]}
14. Nxe4 {[%clk 0:02:08.6]} 14... Bxe4 {[%clk 0:02:27.5]} 15. Rc1 {[%clk
0:02:09.1]} 15... d5 {[%clk 0:02:00.1]} 16. Bf4 {[%clk 0:02:07.4]} 16... Qc5
{[%clk 0:01:48.7]} 17. Rd2 {[%clk 0:02:04]} 17... Bg6 {[%clk 0:01:33.4]} 18. h4
{[%clk 0:02:00]} 18... h5 {[%clk 0:01:31.9]} 19. Be5 {[%clk 0:01:59.7]} 19...
Rc6 {[%clk 0:01:13]} 20. f4 {[%clk 0:01:49.7]} 20... Bd6 {[%clk 0:00:59.6]} 21.
Bxg7 {[%clk 0:01:48.9]} 21... Rg8 {[%clk 0:00:59.9]} 22. Bd4 {[%clk 0:01:38.3]}
22... Qxc2+ {[%clk 0:00:28.5]} 23. Rdxc2 {[%clk 0:01:26.5]} 23... Rxc2 {[%clk
0:00:26.9]} 24. Bd3 {[%clk 0:01:23.1]} 24... Rxg2 {[%clk 0:00:24.8]} 25. Qf3
{[%clk 0:01:03.3]} 25... Rg3 {[%clk 0:00:24.9]} 26. Qxg3 {[%clk 0:01:02.6]} 1-0

[Event "*** Titled Tuesday Blitz"]
[Site "Chess.com"]
[Date "2020.10.20"]
[Round "4"]
[White "TimofeevAr"]
[Black "UKR_Master"]
[Result "1-0"]
[WhiteElo "2788"]
[BlackElo "2456"]
[TimeControl "180+1"]
[EndTime "10:39:48 PDT"]
[Termination "TimofeevAr won by resignation"]

1. e4 {[%clk 0:03:00.9]} 1... c5 {[%clk 0:02:58.1]} 2. Nf3 {[%clk 0:03:00.7]}
2... d6 {[%clk 0:02:56.8]} 3. Bc4 {[%clk 0:02:59.9]} 3... e6 {[%clk 0:02:53.1]}
4. O-O {[%clk 0:02:59.4]} 4... Nf6 {[%clk 0:02:49.2]} 5. Re1 {[%clk 0:02:59.5]}
5... Nc6 {[%clk 0:02:47.4]} 6. Bb3 {[%clk 0:02:50.1]} 6... Be7 {[%clk
0:02:44.9]} 7. c3 {[%clk 0:02:50.2]} 7... O-O {[%clk 0:02:22.6]} 8. d4 {[%clk
0:02:50]} 8... cxd4 {[%clk 0:02:22.7]} 9. cxd4 {[%clk 0:02:49.5]} 9... d5 {[%clk
0:02:22.7]} 10. e5 {[%clk 0:02:49.6]} 10... Ne4 {[%clk 0:02:20.9]} 11. Nc3
{[%clk 0:02:49.6]} 11... Nxc3 {[%clk 0:02:19.7]} 12. bxc3 {[%clk 0:02:49.5]}
12... f5 {[%clk 0:02:13.9]} 13. exf6 {[%clk 0:02:48.9]} 13... Bxf6 {[%clk
0:02:12.6]} 14. Qd3 {[%clk 0:02:41.9]} 14... g6 {[%clk 0:02:04.1]} 15. Bh6
{[%clk 0:02:40.8]} 15... Re8 {[%clk 0:02:01.7]} 16. Re2 {[%clk 0:02:35.5]} 16...
Bd7 {[%clk 0:01:59.3]} 17. Rae1 {[%clk 0:02:35.1]} 17... Rc8 {[%clk 0:01:57.7]}
18. g3 {[%clk 0:02:29.1]} 18... Na5 {[%clk 0:01:46.8]} 19. Ne5 {[%clk
0:02:27.1]} 19... Nxb3 {[%clk 0:01:32.8]} 20. axb3 {[%clk 0:02:26.8]} 20... Qc7
{[%clk 0:01:22.2]} 21. Qf3 {[%clk 0:02:20.2]} 21... Bxe5 {[%clk 0:01:03.9]} 22.
Rxe5 {[%clk 0:02:19.7]} 22... Re7 {[%clk 0:01:03.5]} 23. R5e3 {[%clk 0:02:04.2]}
23... Rf7 {[%clk 0:01:01.7]} 24. Qe2 {[%clk 0:01:55.5]} 24... Qb6 {[%clk
0:00:59.7]} 25. b4 {[%clk 0:01:51.1]} 25... Bb5 {[%clk 0:00:54.3]} 26. Qd2
{[%clk 0:01:48.1]} 26... Rc6 {[%clk 0:00:51.9]} 27. h4 {[%clk 0:01:44]} 27... a5
{[%clk 0:00:45.4]} 28. bxa5 {[%clk 0:01:43.5]} 28... Qxa5 {[%clk 0:00:45.3]} 29.
h5 {[%clk 0:01:43.7]} 29... Rfc7 {[%clk 0:00:44.8]} 30. Rf3 {[%clk 0:01:31.9]}
30... Rc8 {[%clk 0:00:26.4]} 31. Qf4 {[%clk 0:01:31.6]} 31... Qc7 {[%clk
0:00:23]} 32. Qf8+ {[%clk 0:01:31.1]} 1-0

[Event "*** Titled Tuesday Blitz"]
[Site "Chess.com"]
[Date "2020.10.20"]
[Round "4"]
[White "1977Ivan"]
[Black "ShahMatKanal"]
[Result "1-0"]
[WhiteElo "2687"]
[BlackElo "2461"]
[TimeControl "180+1"]
[EndTime "10:39:49 PDT"]
[Termination "1977Ivan won by resignation"]

1. d4 {[%clk 0:03:00.9]} 1... d5 {[%clk 0:02:59.6]} 2. c4 {[%clk 0:03:01.4]}
2... e6 {[%clk 0:02:59.2]} 3. Nf3 {[%clk 0:02:58.5]} 3... Nf6 {[%clk 0:02:58.6]}
4. Nc3 {[%clk 0:02:57.7]} 4... Nbd7 {[%clk 0:02:46.5]} 5. c5 {[%clk 0:02:50.8]}
5... b6 {[%clk 0:02:32.6]} 6. c6 {[%clk 0:02:45.1]} 6... Nb8 {[%clk 0:02:28.5]}
7. Qa4 {[%clk 0:02:43.6]} 7... Bd6 {[%clk 0:02:19.8]} 8. Bg5 {[%clk 0:02:39.7]}
8... h6 {[%clk 0:02:13.6]} 9. Bh4 {[%clk 0:02:39]} 9... Ba6 {[%clk 0:02:02.5]}
10. Rc1 {[%clk 0:02:33.5]} 10... O-O {[%clk 0:01:58.1]} 11. e4 {[%clk
0:02:01.9]} 11... Bxf1 {[%clk 0:01:54.2]} 12. Kxf1 {[%clk 0:02:01.7]} 12... dxe4
{[%clk 0:01:25.5]} 13. Bxf6 {[%clk 0:02:00.9]} 13... Be7 {[%clk 0:01:26.4]} 14.
Bxe7 {[%clk 0:01:59.8]} 14... Qxe7 {[%clk 0:01:25.2]} 15. Nxe4 {[%clk
0:01:59.9]} 15... a5 {[%clk 0:01:22.9]} 16. h4 {[%clk 0:01:57.3]} 16... Na6
{[%clk 0:01:21.8]} 17. a3 {[%clk 0:01:57]} 17... Rfd8 {[%clk 0:01:19.1]} 18. Rh3
{[%clk 0:01:56.6]} 18... Rd5 {[%clk 0:01:18.7]} 19. Kg1 {[%clk 0:01:53.4]} 19...
Rad8 {[%clk 0:01:13.7]} 20. Qc2 {[%clk 0:01:51.8]} 20... b5 {[%clk 0:01:06.7]}
21. Rg3 {[%clk 0:01:49]} 21... b4 {[%clk 0:01:03.9]} 22. Qc4 {[%clk 0:01:48]}
22... bxa3 {[%clk 0:00:59.1]} 23. Qxa6 {[%clk 0:01:41.7]} 23... axb2 {[%clk
0:00:58.5]} 24. Rb1 {[%clk 0:01:41.6]} 24... Qa3 {[%clk 0:00:20.2]} 25. Nf6+
{[%clk 0:01:37.3]} 25... Kh8 {[%clk 0:00:20.1]} 26. Nxd5 {[%clk 0:01:33.8]}
26... Qa1 {[%clk 0:00:16.4]} 27. Nd2 {[%clk 0:01:29.8]} 27... exd5 {[%clk
0:00:12.8]} 28. Qb5 {[%clk 0:01:24.8]} 28... Re8 {[%clk 0:00:10]} 29. Re3 {[%clk
0:01:24.6]} 1-0

[Event "*** Titled Tuesday Blitz"]
[Site "Chess.com"]
[Date "2020.10.20"]
[Round "4"]
[White "fm_magua"]
[Black "barriochess"]
[Result "1-0"]
[WhiteElo "2593"]
[BlackElo "2284"]
[TimeControl "180+1"]
[EndTime "10:39:50 PDT"]
[Termination "fm_magua won by resignation"]

1. e4 {[%clk 0:03:00.9]} 1... d6 {[%clk 0:02:59.1]} 2. d4 {[%clk 0:02:58.4]}
2... Nf6 {[%clk 0:02:57.8]} 3. Nc3 {[%clk 0:02:58.4]} 3... g6 {[%clk 0:02:57.7]}
4. Be3 {[%clk 0:02:57.3]} 4... c6 {[%clk 0:02:57.4]} 5. f3 {[%clk 0:02:57.6]}
5... Nbd7 {[%clk 0:02:56.9]} 6. Bc4 {[%clk 0:02:57.8]} 6... d5 {[%clk
0:02:51.7]} 7. Bb3 {[%clk 0:02:56.4]} 7... e6 {[%clk 0:02:42.2]} 8. e5 {[%clk
0:02:56.2]} 8... Nh5 {[%clk 0:02:38.7]} 9. Nce2 {[%clk 0:02:54.8]} 9... c5
{[%clk 0:02:35.9]} 10. c3 {[%clk 0:02:55.1]} 10... Be7 {[%clk 0:02:27]} 11. Qd2
{[%clk 0:02:54.3]} 11... b6 {[%clk 0:02:24.7]} 12. Nh3 {[%clk 0:02:53.9]} 12...
Ba6 {[%clk 0:02:24.3]} 13. Nef4 {[%clk 0:02:53.8]} 13... Nxf4 {[%clk 0:02:22.3]}
14. Nxf4 {[%clk 0:02:53.9]} 14... h5 {[%clk 0:02:17.5]} 15. g3 {[%clk
0:02:47.7]} 15... c4 {[%clk 0:02:04.9]} 16. Bc2 {[%clk 0:02:47.6]} 16... Nf8
{[%clk 0:01:59.3]} 17. h4 {[%clk 0:02:45.6]} 17... Bb7 {[%clk 0:01:51.3]} 18.
Nh3 {[%clk 0:02:45.7]} 18... b5 {[%clk 0:01:50.3]} 19. Bg5 {[%clk 0:02:45.4]}
19... Bxg5 {[%clk 0:01:49.6]} 20. Nxg5 {[%clk 0:02:45.3]} 20... Qe7 {[%clk
0:01:43.4]} 21. a4 {[%clk 0:02:43.4]} 21... a6 {[%clk 0:01:38]} 22. axb5 {[%clk
0:02:43]} 22... axb5 {[%clk 0:01:38.9]} 23. Rxa8+ {[%clk 0:02:42.6]} 23... Bxa8
{[%clk 0:01:39.2]} 24. O-O {[%clk 0:02:43.5]} 24... Nd7 {[%clk 0:01:25.9]} 25.
Ra1 {[%clk 0:02:43]} 25... Nb6 {[%clk 0:01:21.4]} 26. Ra6 {[%clk 0:02:31.5]}
26... Qb7 {[%clk 0:01:19.3]} 27. Qf4 {[%clk 0:02:30.7]} 27... Rf8 {[%clk
0:01:14.9]} 28. Ra1 {[%clk 0:02:29.1]} 28... Nd7 {[%clk 0:01:09]} 29. Nh7 {[%clk
0:02:15.7]} 29... Rg8 {[%clk 0:01:07]} 30. Nf6+ {[%clk 0:02:11.3]} 30... Nxf6
{[%clk 0:01:06.9]} 31. exf6 {[%clk 0:02:12.2]} 31... Kd7 {[%clk 0:00:59.6]} 32.
Qh6 {[%clk 0:02:06.9]} 32... Kc6 {[%clk 0:00:55.2]} 33. Qh7 {[%clk 0:02:05.1]}
33... Rb8 {[%clk 0:00:48.8]} 34. Qg7 {[%clk 0:01:53.9]} 34... Qc7 {[%clk
0:00:46.7]} 35. Kf2 {[%clk 0:01:52.2]} 35... b4 {[%clk 0:00:44.6]} 36. Ra6+
{[%clk 0:01:50.8]} 36... Kb5 {[%clk 0:00:40.7]} 37. Rxe6 {[%clk 0:01:46.1]}
37... bxc3 {[%clk 0:00:31.9]} 38. bxc3 {[%clk 0:01:45.7]} 38... Ka5 {[%clk
0:00:32]} 39. Re2 {[%clk 0:01:41.3]} 39... Rb2 {[%clk 0:00:28.2]} 40. Qf8 {[%clk
0:01:35.7]} 1-0

[Event "*** Titled Tuesday Blitz"]
[Site "Chess.com"]
[Date "2020.10.20"]
[Round "4"]
[White "FMJoseHerrera"]
[Black "ajdemipopushi"]
[Result "1-0"]
[WhiteElo "2535"]
[BlackElo "2343"]
[TimeControl "180+1"]
[EndTime "10:39:53 PDT"]
[Termination "FMJoseHerrera won on time"]

1. Nf3 {[%clk 0:02:48.9]} 1... c5 {[%clk 0:02:59]} 2. g3 {[%clk 0:02:46.6]} 2...
g6 {[%clk 0:02:58.4]} 3. Bg2 {[%clk 0:02:46.5]} 3... Bg7 {[%clk 0:02:58.8]} 4.
d3 {[%clk 0:02:46.7]} 4... Nc6 {[%clk 0:02:58.9]} 5. Nc3 {[%clk 0:02:47]} 5...
e6 {[%clk 0:02:58.1]} 6. h4 {[%clk 0:02:46.8]} 6... h6 {[%clk 0:02:50.8]} 7. e4
{[%clk 0:02:46.5]} 7... Nge7 {[%clk 0:02:41.5]} 8. Be3 {[%clk 0:02:45.7]} 8...
Nd4 {[%clk 0:02:41.1]} 9. Qd2 {[%clk 0:02:44.8]} 9... d6 {[%clk 0:02:31.2]} 10.
Ne2 {[%clk 0:02:41.9]} 10... Nxe2 {[%clk 0:01:58.4]} 11. Qxe2 {[%clk 0:02:41.2]}
11... Bxb2 {[%clk 0:01:59]} 12. O-O {[%clk 0:02:39.8]} 12... Rb8 {[%clk
0:01:50.7]} 13. Rab1 {[%clk 0:02:39.6]} 13... Bg7 {[%clk 0:01:49.7]} 14. d4
{[%clk 0:02:23.3]} 14... cxd4 {[%clk 0:01:35.4]} 15. Nxd4 {[%clk 0:02:24.2]}
15... O-O {[%clk 0:01:32.5]} 16. Qd2 {[%clk 0:02:20.7]} 16... Kh7 {[%clk
0:01:31.1]} 17. Nb5 {[%clk 0:02:18.3]} 17... d5 {[%clk 0:01:17.8]} 18. h5 {[%clk
0:02:09.8]} 18... a6 {[%clk 0:01:00.3]} 19. hxg6+ {[%clk 0:01:56.8]} 19... Nxg6
{[%clk 0:00:57.2]} 20. Nd4 {[%clk 0:01:44.3]} 20... Qc7 {[%clk 0:00:17.8]} 21.
exd5 {[%clk 0:01:41.4]} 21... exd5 {[%clk 0:00:17.4]} 22. Bxd5 {[%clk
0:01:36.8]} 22... Bh3 {[%clk 0:00:16.9]} 23. Rfd1 {[%clk 0:01:32.1]} 23... Rfd8
{[%clk 0:00:15.4]} 24. Be4 {[%clk 0:01:31.4]} 24... Qe5 {[%clk 0:00:11.6]} 25.
Qd3 {[%clk 0:01:26.6]} 25... Rd7 {[%clk 0:00:01.5]} 26. c3 {[%clk 0:01:19]} 1-0

[Event "*** Titled Tuesday Blitz"]
[Site "Chess.com"]
[Date "2020.10.20"]
[Round "4"]
[White "krasavetc"]
[Black "jacky72"]
[Result "0-1"]
[WhiteElo "2325"]
[BlackElo "2556"]
[TimeControl "180+1"]
[EndTime "10:39:56 PDT"]
[Termination "jacky72 won by resignation"]

1. e4 {[%clk 0:03:00.9]} 1... a6 {[%clk 0:02:59.7]} 2. d4 {[%clk 0:03:00.1]}
2... g6 {[%clk 0:02:59.6]} 3. Nf3 {[%clk 0:03:01]} 3... Bg7 {[%clk 0:03:00.2]}
4. Bc4 {[%clk 0:03:01.3]} 4... b5 {[%clk 0:03:00.8]} 5. Bd5 {[%clk 0:03:00.2]}
5... c6 {[%clk 0:02:59.4]} 6. Bb3 {[%clk 0:02:59.6]} 6... e6 {[%clk 0:02:59.4]}
7. Bf4 {[%clk 0:02:58.3]} 7... d5 {[%clk 0:02:59.2]} 8. a4 {[%clk 0:02:56]} 8...
dxe4 {[%clk 0:02:57.7]} 9. Ne5 {[%clk 0:02:56.3]} 9... Nf6 {[%clk 0:02:51.6]}
10. Nc3 {[%clk 0:02:48.6]} 10... Bb7 {[%clk 0:02:51.2]} 11. Qe2 {[%clk
0:02:43.7]} 11... Nbd7 {[%clk 0:02:48.4]} 12. Nxe4 {[%clk 0:02:38.5]} 12... Nxe4
{[%clk 0:02:47]} 13. Qxe4 {[%clk 0:02:35.3]} 13... O-O {[%clk 0:02:46.4]} 14.
O-O {[%clk 0:02:25.7]} 14... Nf6 {[%clk 0:02:40.7]} 15. Qd3 {[%clk 0:02:13.9]}
15... Nd5 {[%clk 0:02:40.8]} 16. Bg3 {[%clk 0:02:10.3]} 16... Qb6 {[%clk
0:02:33.1]} 17. Nd7 {[%clk 0:02:05.7]} 17... Qxd4 {[%clk 0:02:33]} 18. Nxf8
{[%clk 0:02:00]} 18... Qxd3 {[%clk 0:02:28.4]} 19. cxd3 {[%clk 0:02:00.9]} 19...
Kxf8 {[%clk 0:02:28.9]} 20. axb5 {[%clk 0:01:59.7]} 20... cxb5 {[%clk
0:02:28.5]} 21. Rab1 {[%clk 0:01:14.4]} 21... Ke7 {[%clk 0:02:27.1]} 22. Rfc1
{[%clk 0:01:12.3]} 22... e5 {[%clk 0:02:15.1]} 23. Rc5 {[%clk 0:01:04]} 23...
Rd8 {[%clk 0:02:12.8]} 24. Rbc1 {[%clk 0:01:01.4]} 24... Rd7 {[%clk 0:02:00]}
25. h3 {[%clk 0:00:56.8]} 25... f5 {[%clk 0:01:58.4]} 26. Bh4+ {[%clk
0:00:48.9]} 26... Kd6 {[%clk 0:01:58]} 27. Ba2 {[%clk 0:00:22.7]} 27... h6
{[%clk 0:01:52.9]} 28. f3 {[%clk 0:00:19.6]} 28... Nf4 {[%clk 0:01:53.2]} 29.
R1c2 {[%clk 0:00:05.6]} 29... Nxd3 {[%clk 0:01:51.4]} 30. R5c3 {[%clk 0:00:06]}
30... e4 {[%clk 0:01:50]} 31. fxe4 {[%clk 0:00:05.3]} 31... Bxe4 {[%clk
0:01:47.7]} 32. Rc8 {[%clk 0:00:02.8]} 32... Bd4+ {[%clk 0:01:45.7]} 33. Bf2
{[%clk 0:00:02.9]} 33... Nxf2 {[%clk 0:01:41.7]} 34. Rxf2 {[%clk 0:00:03.8]}
34... Rc7 {[%clk 0:01:37.3]} 35. Rxc7 {[%clk 0:00:03]} 35... Kxc7 {[%clk
0:01:38.2]} 0-1

[Event "*** Titled Tuesday Blitz"]
[Site "Chess.com"]
[Date "2020.10.20"]
[Round "4"]
[White "albi1999"]
[Black "Sueetin"]
[Result "1-0"]
[WhiteElo "2601"]
[BlackElo "2354"]
[TimeControl "180+1"]
[EndTime "10:39:57 PDT"]
[Termination "albi1999 won by checkmate"]

1. d4 {[%clk 0:03:00.9]} 1... Nf6 {[%clk 0:02:59.2]} 2. c4 {[%clk 0:02:59.3]}
2... e6 {[%clk 0:02:59.5]} 3. Nf3 {[%clk 0:02:58.7]} 3... d5 {[%clk 0:02:59.1]}
4. g3 {[%clk 0:02:58]} 4... dxc4 {[%clk 0:02:56.6]} 5. Bg2 {[%clk 0:02:57.8]}
5... Bd7 {[%clk 0:02:56.6]} 6. Ne5 {[%clk 0:02:57]} 6... Bc6 {[%clk 0:02:54.1]}
7. Nxc6 {[%clk 0:02:57.4]} 7... Nxc6 {[%clk 0:02:54.6]} 8. O-O {[%clk
0:02:58.2]} 8... Qd7 {[%clk 0:02:42.9]} 9. e3 {[%clk 0:02:57.9]} 9... O-O-O
{[%clk 0:02:25.8]} 10. Nd2 {[%clk 0:02:57.4]} 10... h5 {[%clk 0:02:12.5]} 11.
Nxc4 {[%clk 0:02:56.6]} 11... h4 {[%clk 0:02:12.8]} 12. Bd2 {[%clk 0:02:52.8]}
12... Nd5 {[%clk 0:02:06.4]} 13. b4 {[%clk 0:02:50.6]} 13... hxg3 {[%clk
0:01:56.2]} 14. hxg3 {[%clk 0:02:49.7]} 14... Bd6 {[%clk 0:01:31]} 15. Qb3
{[%clk 0:02:44.1]} 15... f5 {[%clk 0:01:27.9]} 16. Rfc1 {[%clk 0:02:40.3]} 16...
Kb8 {[%clk 0:01:27.1]} 17. a4 {[%clk 0:02:36.8]} 17... g5 {[%clk 0:01:26.4]} 18.
b5 {[%clk 0:02:37]} 18... Nce7 {[%clk 0:01:18.2]} 19. a5 {[%clk 0:02:29.8]}
19... Ng6 {[%clk 0:00:47]} 20. b6 {[%clk 0:02:28.8]} 20... cxb6 {[%clk
0:00:45.1]} 21. axb6 {[%clk 0:02:28.5]} 21... a6 {[%clk 0:00:45.3]} 22. Rab1
{[%clk 0:02:07.4]} 22... Qh7 {[%clk 0:00:41.3]} 23. Nxd6 {[%clk 0:02:00.7]}
23... Qh2+ {[%clk 0:00:39.7]} 24. Kf1 {[%clk 0:02:00.3]} 24... Rxd6 {[%clk
0:00:37.5]} 25. Qa3 {[%clk 0:01:56.7]} 25... Rd7 {[%clk 0:00:32.6]} 26. Rc7
{[%clk 0:01:52.3]} 26... Rdh7 {[%clk 0:00:19.9]} 27. Qd6 {[%clk 0:01:45.6]}
27... Ka8 {[%clk 0:00:12.7]} 28. Qxe6 {[%clk 0:01:41.6]} 28... Ngf4 {[%clk
0:00:07.3]} 29. exf4 {[%clk 0:01:39.9]} 29... Nxf4 {[%clk 0:00:05.7]} 30. gxf4
{[%clk 0:01:28.2]} 30... gxf4 {[%clk 0:00:03.8]} 31. Rc8+ {[%clk 0:01:25]} 31...
Rxc8 {[%clk 0:00:02.9]} 32. Qxc8# {[%clk 0:01:25.9]} 1-0

[Event "*** Titled Tuesday Blitz"]
[Site "Chess.com"]
[Date "2020.10.20"]
[Round "4"]
[White "simplerXiao"]
[Black "Fortitudine"]
[Result "0-1"]
[WhiteElo "2399"]
[BlackElo "2293"]
[TimeControl "180+1"]
[EndTime "10:39:58 PDT"]
[Termination "Fortitudine won by resignation"]

1. d4 {[%clk 0:03:00.9]} 1... Nf6 {[%clk 0:02:59.2]} 2. g3 {[%clk 0:02:58.4]}
2... c5 {[%clk 0:02:57.5]} 3. Nf3 {[%clk 0:02:54.2]} 3... g6 {[%clk 0:02:53.2]}
4. Bg2 {[%clk 0:02:53.6]} 4... Bg7 {[%clk 0:02:51.9]} 5. O-O {[%clk 0:02:53.3]}
5... cxd4 {[%clk 0:02:51.5]} 6. Nxd4 {[%clk 0:02:52.9]} 6... O-O {[%clk
0:02:51.3]} 7. e4 {[%clk 0:02:53]} 7... d6 {[%clk 0:02:51.2]} 8. Nc3 {[%clk
0:02:52.9]} 8... a6 {[%clk 0:02:49.3]} 9. h3 {[%clk 0:02:53.1]} 9... Nbd7 {[%clk
0:02:46]} 10. Re1 {[%clk 0:02:52.9]} 10... e6 {[%clk 0:02:36.4]} 11. a4 {[%clk
0:02:49.8]} 11... Qc7 {[%clk 0:02:25.6]} 12. a5 {[%clk 0:02:47.4]} 12... Ne5
{[%clk 0:02:15.9]} 13. Nde2 {[%clk 0:02:41.2]} 13... Bd7 {[%clk 0:02:12.2]} 14.
g4 {[%clk 0:02:40.5]} 14... Rac8 {[%clk 0:01:58.1]} 15. Ng3 {[%clk 0:02:31.4]}
15... Bc6 {[%clk 0:01:32.2]} 16. b3 {[%clk 0:02:26.6]} 16... Rcd8 {[%clk
0:01:08.5]} 17. Bf4 {[%clk 0:02:16.3]} 17... Nfd7 {[%clk 0:01:00.4]} 18. Nce2
{[%clk 0:02:10.5]} 18... Nc5 {[%clk 0:00:44.9]} 19. Nd4 {[%clk 0:02:10.1]} 19...
Rfe8 {[%clk 0:00:25.5]} 20. Ra2 {[%clk 0:02:08.3]} 20... Ncd7 {[%clk 0:00:17.9]}
21. c4 {[%clk 0:02:02.7]} 21... Nf6 {[%clk 0:00:13.9]} 22. g5 {[%clk 0:02:01.4]}
22... Nh5 {[%clk 0:00:11.9]} 23. Nxh5 {[%clk 0:02:00.2]} 23... gxh5 {[%clk
0:00:12.8]} 24. Qxh5 {[%clk 0:01:59.5]} 24... Nd3 {[%clk 0:00:12.8]} 25. Rd1
{[%clk 0:01:56.6]} 25... Nxf4 {[%clk 0:00:12.8]} 26. Qg4 {[%clk 0:01:54.5]}
26... Nxg2 {[%clk 0:00:12.5]} 27. Kxg2 {[%clk 0:01:53.2]} 27... d5 {[%clk
0:00:11.3]} 28. exd5 {[%clk 0:01:50.7]} 28... exd5 {[%clk 0:00:10.9]} 29. Nf5
{[%clk 0:01:50.8]} 29... dxc4+ {[%clk 0:00:11]} 30. f3 {[%clk 0:01:43.6]} 30...
Rxd1 {[%clk 0:00:11]} 31. Qh5 {[%clk 0:01:42.3]} 31... Qd7 {[%clk 0:00:09.2]}
32. Nxg7 {[%clk 0:01:40.1]} 32... Rd2+ {[%clk 0:00:08.9]} 33. Rxd2 {[%clk
0:01:36.5]} 33... Qxd2+ {[%clk 0:00:09.8]} 34. Kg3 {[%clk 0:01:36.9]} 34... Kxg7
{[%clk 0:00:08.8]} 35. Qh6+ {[%clk 0:01:37.2]} 35... Kg8 {[%clk 0:00:09.2]} 36.
g6 {[%clk 0:01:36.9]} 36... Qe1+ {[%clk 0:00:08.6]} 37. Kg4 {[%clk 0:01:36.5]}
37... Qe6+ {[%clk 0:00:07.9]} 38. Kh4 {[%clk 0:01:35.9]} 38... Qxg6 {[%clk
0:00:08.5]} 0-1